[Event "Titled Tuesday Blitz August 31 2021"]
[White "Kuruppu, Supun Dasantha"]
[Black "Manukyan, Artyom"]
[WhiteFideId "9902805"]
[BlackFideId "13305786"]
[WhiteElo "1704"]
[BlackElo "2034"]
[Result "1/2-1/2"]
[Round "11"]
[TimeControl "180+1"]
[Date "2021.08.31"]
[WhiteClock "0:00:18"]
[BlackClock "0:00:20"]

1. d4 {[%clk 0:03:00]}  d5 {[%clk 0:02:56]} 2. Nf3 {[%clk 0:02:59]}  Nf6 {[%clk 0:02:51]} 3. Bf4 {[%clk 0:02:59]}  c5 {[%clk 0:02:50]} 4. c3 {[%clk 0:02:58]}  Nc6 {[%clk 0:02:50]} 5. e3 {[%clk 0:02:58]}  Qb6 {[%clk 0:02:50]} 6. Qb3 {[%clk 0:02:57]}  c4 {[%clk 0:02:50]} 7. Qxb6 {[%clk 0:02:57]}  axb6 {[%clk 0:02:51]} 8. Nbd2 {[%clk 0:02:53]}  b5 {[%clk 0:02:51]} 9. Be2 {[%clk 0:02:51]}  b4 {[%clk 0:02:51]} 10. O-O {[%clk 0:02:51]}  bxc3 {[%clk 0:02:52]} 11. bxc3 {[%clk 0:02:51]}  h6 {[%clk 0:02:48]} 12. a4 {[%clk 0:02:50]}  Bf5 {[%clk 0:02:47]} 13. Ne5 {[%clk 0:02:47]}  e6 {[%clk 0:02:46]} 14. Nxc6 {[%clk 0:02:46]}  bxc6 {[%clk 0:02:47]} 15. a5 {[%clk 0:02:29]}  Ra6 {[%clk 0:02:24]} 16. Nxc4 {[%clk 0:02:17]}  dxc4 {[%clk 0:02:23]} 17. Bxc4 {[%clk 0:02:18]}  Ra8 {[%clk 0:02:22]} 18. a6 {[%clk 0:02:17]}  Kd7 {[%clk 0:02:22]} 19. f3 {[%clk 0:02:16]}  Nd5 {[%clk 0:02:10]} 20. Bxd5 {[%clk 0:01:39]}  exd5 {[%clk 0:02:05]} 21. e4 {[%clk 0:01:32]}  dxe4 {[%clk 0:02:02]} 22. Rfb1 {[%clk 0:01:32]}  exf3 {[%clk 0:01:12]} 23. Rb7+ {[%clk 0:01:20]}  Ke6 {[%clk 0:01:12]} 24. a7 {[%clk 0:00:46]}  Bd6 {[%clk 0:01:07]} 25. Re1+ {[%clk 0:00:44]}  Kd5 {[%clk 0:01:04]} 26. c4+ {[%clk 0:00:43]}  Kxc4 {[%clk 0:00:59]} 27. Bxd6 {[%clk 0:00:43]}  fxg2 {[%clk 0:00:55]} 28. Kxg2 {[%clk 0:00:35]}  Be6 {[%clk 0:00:53]} 29. Rb8 {[%clk 0:00:19]}  Bd5+ {[%clk 0:00:47]} 30. Kg3 {[%clk 0:00:19]}  c5 {[%clk 0:00:32]} 31. dxc5 {[%clk 0:00:19]}  Rc8 {[%clk 0:00:30]} 32. Ra1 {[%clk 0:00:17]}  Bc6 {[%clk 0:00:24]} 33. Rc1+ {[%clk 0:00:15]}  Kd5 {[%clk 0:00:24]} 34. Rd1+ {[%clk 0:00:16]}  Ke6 {[%clk 0:00:23]} 35. Re1+ {[%clk 0:00:16]}  Kd5 {[%clk 0:00:20]} 36. Rd1+ {[%clk 0:00:15]}  Ke6 {[%clk 0:00:21]} 37. Ra1 {[%clk 0:00:15]}  Kd7 {[%clk 0:00:19]} 38. Re1 {[%clk 0:00:15]}  Bd5 {[%clk 0:00:08]} 39. Re7+ {[%clk 0:00:14]}  Kd8 {[%clk 0:00:04]} 40. Rxc8+ {[%clk 0:00:09]}  Kxc8 {[%clk 0:00:03]} 41. Re8+ {[%clk 0:00:09]}  Kb7 {[%clk 0:00:04]} 42. Rxa8 {[%clk 0:00:08]}  Kxa8 {[%clk 0:00:05]} 43. Bb8 {[%clk 0:00:07]}  Kb7 {[%clk 0:00:05]} 44. Kf4 {[%clk 0:00:08]}  Kc8 {[%clk 0:00:05]} 45. Ke5 {[%clk 0:00:08]}  Ba8 {[%clk 0:00:04]} 46. c6 {[%clk 0:00:08]}  Bxc6 {[%clk 0:00:04]} 47. Kd6 {[%clk 0:00:09]}  Ba8 {[%clk 0:00:03]} 48. Ke7 {[%clk 0:00:09]}  g5 {[%clk 0:00:04]} 49. Kxf7 {[%clk 0:00:09]}  h5 {[%clk 0:00:05]} 50. Kg6 {[%clk 0:00:09]}  g4 {[%clk 0:00:06]} 51. Kxh5 {[%clk 0:00:10]}  Bf3 {[%clk 0:00:07]} 52. Kh4 {[%clk 0:00:10]}  Kb7 {[%clk 0:00:07]} 53. Kg3 {[%clk 0:00:09]}  Bd1 {[%clk 0:00:07]} 54. Kf4 {[%clk 0:00:08]}  Ka8 {[%clk 0:00:08]} 55. Kg3 {[%clk 0:00:09]}  Bf3 {[%clk 0:00:08]} 56. Kf4 {[%clk 0:00:09]}  Bd1 {[%clk 0:00:08]} 57. Ke5 {[%clk 0:00:09]}  Bf3 {[%clk 0:00:08]} 58. Kd6 {[%clk 0:00:09]}  Bd1 {[%clk 0:00:09]} 59. Kc5 {[%clk 0:00:09]}  Bf3 {[%clk 0:00:10]} 60. Kb6 {[%clk 0:00:10]}  Bd1 {[%clk 0:00:10]} 61. Bg3 {[%clk 0:00:10]}  Bf3 {[%clk 0:00:11]} 62. Bb8 {[%clk 0:00:09]}  Bd1 {[%clk 0:00:09]} 63. Bf4 {[%clk 0:00:09]}  Bf3 {[%clk 0:00:09]} 64. Be3 {[%clk 0:00:09]}  Bd1 {[%clk 0:00:10]} 65. Bg1 {[%clk 0:00:10]}  Bf3 {[%clk 0:00:10]} 66. Kc7 {[%clk 0:00:11]}  Bd1 {[%clk 0:00:10]} 67. Kd6 {[%clk 0:00:12]}  Bf3 {[%clk 0:00:10]} 68. Ke5 {[%clk 0:00:13]}  Bd1 {[%clk 0:00:11]} 69. Kf4 {[%clk 0:00:13]}  Kb7 {[%clk 0:00:11]} 70. Ke3 {[%clk 0:00:14]}  Ka8 {[%clk 0:00:12]} 71. Kd2 {[%clk 0:00:15]}  Bf3 {[%clk 0:00:12]} 72. Ke3 {[%clk 0:00:16]}  Kb7 {[%clk 0:00:13]} 73. h4 {[%clk 0:00:16]}  gxh3 {[%clk 0:00:13]} 74. Kxf3 {[%clk 0:00:16]}  h2 {[%clk 0:00:13]} 75. Bxh2 {[%clk 0:00:15]}  Ka8 {[%clk 0:00:13]} 76. Bg1 {[%clk 0:00:15]}  Kb7 {[%clk 0:00:14]} 77. Ke4 {[%clk 0:00:16]}  Ka8 {[%clk 0:00:15]} 78. Kd5 {[%clk 0:00:17]}  Kb7 {[%clk 0:00:16]} 79. Kc5 {[%clk 0:00:17]}  Ka8 {[%clk 0:00:17]} 80. Kb5 {[%clk 0:00:18]}  Kb7 {[%clk 0:00:18]} 81. Ka5 {[%clk 0:00:18]}  Ka8 {[%clk 0:00:18]} 82. Kb5 {[%clk 0:00:18]}  Kb7 {[%clk 0:00:19]} 83. Ka5 {[%clk 0:00:17]}  Ka8 {[%clk 0:00:20]} 84. Ka6 {[%clk 0:00:18]} 1/2-1/2


[Site "https://www.chess.com"]

[Event "Titled Tuesday Blitz August 31 2021"]
[White "Lisik, Valery"]
[Black "Mekhitarian, Krikor Sevag"]
[WhiteFideId "4101596"]
[BlackFideId "2107660"]
[WhiteElo "2564"]
[BlackElo "2598"]
[Result "1-0"]
[Round "11"]
[TimeControl "180+1"]
[Date "2021.08.31"]
[WhiteClock "0:00:55"]
[BlackClock "0:00:13"]

1. d4 {[%clk 0:03:00]}  Nf6 {[%clk 0:02:55]} 2. c4 {[%clk 0:03:00]}  g6 {[%clk 0:02:54]} 3. Nc3 {[%clk 0:03:00]}  d5 {[%clk 0:02:54]} 4. Nf3 {[%clk 0:03:00]}  Bg7 {[%clk 0:02:53]} 5. cxd5 {[%clk 0:03:00]}  Nxd5 {[%clk 0:02:53]} 6. e4 {[%clk 0:03:01]}  Nxc3 {[%clk 0:02:54]} 7. bxc3 {[%clk 0:03:02]}  c5 {[%clk 0:02:54]} 8. h3 {[%clk 0:03:03]}  O-O {[%clk 0:02:52]} 9. Be2 {[%clk 0:03:02]}  Qc7 {[%clk 0:02:50]} 10. O-O {[%clk 0:02:59]}  b6 {[%clk 0:02:50]} 11. Be3 {[%clk 0:02:48]}  Bb7 {[%clk 0:02:49]} 12. Qd3 {[%clk 0:02:43]}  Nd7 {[%clk 0:02:34]} 13. Rac1 {[%clk 0:02:43]}  Rac8 {[%clk 0:02:34]} 14. d5 {[%clk 0:02:38]}  e6 {[%clk 0:02:13]} 15. c4 {[%clk 0:02:38]}  exd5 {[%clk 0:02:12]} 16. cxd5 {[%clk 0:02:29]}  Rcd8 {[%clk 0:01:50]} 17. Bg5 {[%clk 0:02:22]}  f6 {[%clk 0:01:31]} 18. Bh4 {[%clk 0:02:22]}  Rfe8 {[%clk 0:01:28]} 19. Bg3 {[%clk 0:02:19]}  Qc8 {[%clk 0:01:27]} 20. Qc2 {[%clk 0:02:11]}  Bh6 {[%clk 0:01:15]} 21. Rcd1 {[%clk 0:02:09]}  Ba6 {[%clk 0:01:14]} 22. Rfe1 {[%clk 0:01:54]}  Bxe2 {[%clk 0:01:09]} 23. Rxe2 {[%clk 0:01:54]}  Qb7 {[%clk 0:01:10]} 24. e5 {[%clk 0:01:36]}  fxe5 {[%clk 0:01:08]} 25. Nxe5 {[%clk 0:01:29]}  Nxe5 {[%clk 0:01:05]} 26. Rxe5 {[%clk 0:01:28]}  Rxe5 {[%clk 0:00:51]} 27. Bxe5 {[%clk 0:01:29]}  Qf7 {[%clk 0:00:50]} 28. d6 {[%clk 0:01:26]}  Qe6 {[%clk 0:00:44]} 29. Bg3 {[%clk 0:01:24]}  Bg7 {[%clk 0:00:44]} 30. Qd2 {[%clk 0:01:13]}  Bd4 {[%clk 0:00:38]} 31. Re1 {[%clk 0:01:13]}  Qf7 {[%clk 0:00:34]} 32. Re7 {[%clk 0:01:03]}  Qf8 {[%clk 0:00:20]} 33. Qe2 {[%clk 0:00:58]}  Bf6 {[%clk 0:00:12]} 34. Qe6+ {[%clk 0:00:55]}  Kh8 {[%clk 0:00:13]} 35. Rf7 {[%clk 0:00:55]} 1-0


[Site "https://www.chess.com"]

[Event "Titled Tuesday Blitz August 31 2021"]
[White "Maly, Alexey"]
[Black "Sargsyan, Anna M."]
[WhiteFideId "14103184"]
[BlackFideId "13308130"]
[WhiteElo "2250"]
[BlackElo "2263"]
[Result "1-0"]
[Round "11"]
[TimeControl "180+1"]
[Date "2021.08.31"]
[WhiteClock "0:00:07"]
[BlackClock "0:00:25"]

1. d4 {[%clk 0:03:00]}  d5 {[%clk 0:03:00]} 2. c4 {[%clk 0:03:00]}  c6 {[%clk 0:03:00]} 3. e3 {[%clk 0:03:00]}  Nf6 {[%clk 0:02:59]} 4. Bd3 {[%clk 0:03:00]}  c5 {[%clk 0:02:57]} 5. dxc5 {[%clk 0:02:59]}  e5 {[%clk 0:02:51]} 6. cxd5 {[%clk 0:02:56]}  Qxd5 {[%clk 0:02:50]} 7. e4 {[%clk 0:02:32]}  Qxc5 {[%clk 0:02:43]} 8. Be3 {[%clk 0:02:28]}  Qa5+ {[%clk 0:02:43]} 9. Nc3 {[%clk 0:02:28]}  Nc6 {[%clk 0:02:43]} 10. Nf3 {[%clk 0:02:23]}  Bb4 {[%clk 0:02:39]} 11. O-O {[%clk 0:02:20]}  O-O {[%clk 0:02:40]} 12. Nd5 {[%clk 0:02:14]}  Ng4 {[%clk 0:02:36]} 13. Bg5 {[%clk 0:01:47]}  f6 {[%clk 0:02:22]} 14. Bh4 {[%clk 0:01:38]}  Bc5 {[%clk 0:02:09]} 15. Rc1 {[%clk 0:01:32]}  Kh8 {[%clk 0:02:07]} 16. h3 {[%clk 0:01:26]}  Nh6 {[%clk 0:02:07]} 17. a3 {[%clk 0:01:23]}  Bd4 {[%clk 0:02:01]} 18. Nxd4 {[%clk 0:01:20]}  Nxd4 {[%clk 0:02:02]} 19. Qh5 {[%clk 0:01:04]}  Ng8 {[%clk 0:01:57]} 20. f4 {[%clk 0:00:47]}  exf4 {[%clk 0:01:45]} 21. Rxf4 {[%clk 0:00:48]}  Qd2 {[%clk 0:01:41]} 22. Rd1 {[%clk 0:00:41]}  Qxb2 {[%clk 0:01:39]} 23. e5 {[%clk 0:00:36]}  f5 {[%clk 0:01:34]} 24. Nf6 {[%clk 0:00:26]}  Nxf6 {[%clk 0:01:30]} 25. exf6 {[%clk 0:00:24]}  g6 {[%clk 0:01:31]} 26. Qh6 {[%clk 0:00:22]}  Ne6 {[%clk 0:01:31]} 27. Bc4 {[%clk 0:00:19]}  Rf7 {[%clk 0:01:16]} 28. Rd8+ {[%clk 0:00:12]}  Nxd8 {[%clk 0:01:14]} 29. Bxf7 {[%clk 0:00:12]}  Qc1+ {[%clk 0:00:51]} 30. Kh2 {[%clk 0:00:12]}  Qxf4+ {[%clk 0:00:51]} 31. Qxf4 {[%clk 0:00:11]}  Nxf7 {[%clk 0:00:52]} 32. Qe3 {[%clk 0:00:09]}  Bd7 {[%clk 0:00:51]} 33. Qe7 {[%clk 0:00:08]}  Kg8 {[%clk 0:00:32]} 34. Qxd7 {[%clk 0:00:08]}  h6 {[%clk 0:00:33]} 35. Qxb7 {[%clk 0:00:07]}  Rd8 {[%clk 0:00:34]} 36. Bg3 {[%clk 0:00:07]}  g5 {[%clk 0:00:33]} 37. Qxa7 {[%clk 0:00:06]}  f4 {[%clk 0:00:33]} 38. Bf2 {[%clk 0:00:07]}  Rd6 {[%clk 0:00:32]} 39. Qe7 {[%clk 0:00:06]}  Rd2 {[%clk 0:00:27]} 40. Bc5 {[%clk 0:00:06]}  Rd8 {[%clk 0:00:26]} 41. a4 {[%clk 0:00:07]}  Rc8 {[%clk 0:00:25]} 42. a5 {[%clk 0:00:07]}  Ra8 {[%clk 0:00:25]} 43. a6 {[%clk 0:00:07]} 1-0


[Site "https://www.chess.com"]

[Event "Titled Tuesday Blitz August 31 2021"]
[White "Materia, Marco"]
[Black "Ezat, Mohamed"]
[WhiteFideId "45150451"]
[BlackFideId "10600906"]
[WhiteElo "2657"]
[BlackElo "2414"]
[Result "1-0"]
[Round "11"]
[TimeControl "180+1"]
[Date "2021.08.31"]
[WhiteClock "0:01:34"]
[BlackClock "0:00:02"]

1. d4 {[%clk 0:03:00]}  Nf6 {[%clk 0:02:57]} 2. c4 {[%clk 0:03:01]}  g6 {[%clk 0:02:58]} 3. Nc3 {[%clk 0:03:01]}  Bg7 {[%clk 0:02:58]} 4. e4 {[%clk 0:03:01]}  d6 {[%clk 0:02:59]} 5. Nf3 {[%clk 0:03:01]}  O-O {[%clk 0:03:00]} 6. Be2 {[%clk 0:03:02]}  e5 {[%clk 0:03:00]} 7. d5 {[%clk 0:03:02]}  a5 {[%clk 0:02:59]} 8. Bg5 {[%clk 0:03:02]}  Na6 {[%clk 0:02:58]} 9. O-O {[%clk 0:03:02]}  Nc5 {[%clk 0:02:58]} 10. Nd2 {[%clk 0:03:00]}  Bd7 {[%clk 0:02:57]} 11. b3 {[%clk 0:02:59]}  Qe8 {[%clk 0:02:57]} 12. a3 {[%clk 0:02:59]}  h6 {[%clk 0:02:45]} 13. Bh4 {[%clk 0:02:59]}  Nh7 {[%clk 0:02:44]} 14. b4 {[%clk 0:02:57]}  axb4 {[%clk 0:02:40]} 15. axb4 {[%clk 0:02:57]}  Na4 {[%clk 0:02:41]} 16. Nxa4 {[%clk 0:02:52]}  Bxa4 {[%clk 0:02:40]} 17. Qc1 {[%clk 0:02:50]}  Bd7 {[%clk 0:02:40]} 18. c5 {[%clk 0:02:42]}  Rxa1 {[%clk 0:02:32]} 19. Qxa1 {[%clk 0:02:42]}  f5 {[%clk 0:02:19]} 20. f3 {[%clk 0:02:38]}  g5 {[%clk 0:02:15]} 21. Bf2 {[%clk 0:02:37]}  f4 {[%clk 0:02:15]} 22. Nc4 {[%clk 0:02:34]}  Rf6 {[%clk 0:02:05]} 23. Qa5 {[%clk 0:02:31]}  Qc8 {[%clk 0:01:28]} 24. b5 {[%clk 0:02:22]}  dxc5 {[%clk 0:01:22]} 25. b6 {[%clk 0:02:22]}  cxb6 {[%clk 0:01:15]} 26. Nxb6 {[%clk 0:02:22]}  Qc7 {[%clk 0:01:15]} 27. Qxc5 {[%clk 0:02:18]}  Qxc5 {[%clk 0:01:13]} 28. Bxc5 {[%clk 0:02:18]}  Be8 {[%clk 0:01:03]} 29. Nc4 {[%clk 0:02:13]}  Ra6 {[%clk 0:00:58]} 30. Nd6 {[%clk 0:02:12]}  Ra2 {[%clk 0:00:50]} 31. Nxe8 {[%clk 0:01:52]}  Rxe2 {[%clk 0:00:48]} 32. Nxg7 {[%clk 0:01:52]}  Kxg7 {[%clk 0:00:48]} 33. Rb1 {[%clk 0:01:53]}  g4 {[%clk 0:00:43]} 34. Rxb7+ {[%clk 0:01:52]}  Kg6 {[%clk 0:00:44]} 35. Rb6+ {[%clk 0:01:48]}  Kg7 {[%clk 0:00:39]} 36. Bd6 {[%clk 0:01:48]}  gxf3 {[%clk 0:00:38]} 37. gxf3 {[%clk 0:01:48]}  Ng5 {[%clk 0:00:37]} 38. Bxe5+ {[%clk 0:01:48]}  Kg8 {[%clk 0:00:36]} 39. Kf1 {[%clk 0:01:40]}  Rc2 {[%clk 0:00:22]} 40. Bxf4 {[%clk 0:01:39]}  Nxf3 {[%clk 0:00:22]} 41. Rxh6 {[%clk 0:01:38]}  Kg7 {[%clk 0:00:17]} 42. Rh3 {[%clk 0:01:38]}  Nd2+ {[%clk 0:00:01]} 43. Bxd2 {[%clk 0:01:37]}  Rxd2 {[%clk 0:00:02]} 44. Rf3 {[%clk 0:01:34]} 1-0


[Site "https://www.chess.com"]

[Event "Titled Tuesday Blitz August 31 2021"]
[White "Mezentsev, Ivan"]
[Black "Gabrielian, Artur"]
[WhiteFideId "13706195"]
[BlackFideId "4131002"]
[WhiteElo "2295"]
[BlackElo "2513"]
[Result "0-1"]
[Round "11"]
[TimeControl "180+1"]
[Date "2021.08.31"]
[WhiteClock "0:00:02"]
[BlackClock "0:00:08"]

1. d4 {[%clk 0:03:00]}  d5 {[%clk 0:02:58]} 2. Nf3 {[%clk 0:03:01]}  Nf6 {[%clk 0:02:58]} 3. Bf4 {[%clk 0:03:01]}  e6 {[%clk 0:02:58]} 4. e3 {[%clk 0:03:02]}  c5 {[%clk 0:02:57]} 5. Nbd2 {[%clk 0:03:01]}  Bd6 {[%clk 0:02:56]} 6. Bg3 {[%clk 0:03:01]}  O-O {[%clk 0:02:56]} 7. c3 {[%clk 0:03:00]}  Qc7 {[%clk 0:02:52]} 8. dxc5 {[%clk 0:02:59]}  Qxc5 {[%clk 0:02:45]} 9. Bd3 {[%clk 0:02:59]}  Bxg3 {[%clk 0:02:37]} 10. hxg3 {[%clk 0:02:58]}  h6 {[%clk 0:02:37]} 11. Qe2 {[%clk 0:02:51]}  Nc6 {[%clk 0:02:34]} 12. e4 {[%clk 0:02:51]}  e5 {[%clk 0:01:58]} 13. O-O-O {[%clk 0:02:35]}  d4 {[%clk 0:01:50]} 14. Nb3 {[%clk 0:02:34]}  Qb6 {[%clk 0:01:48]} 15. cxd4 {[%clk 0:02:31]}  Bg4 {[%clk 0:01:48]} 16. dxe5 {[%clk 0:02:21]}  Nxe5 {[%clk 0:01:47]} 17. Kb1 {[%clk 0:02:18]}  Nxd3 {[%clk 0:01:45]} 18. Rxd3 {[%clk 0:02:09]}  Rfe8 {[%clk 0:01:45]} 19. Nbd2 {[%clk 0:02:00]}  Rad8 {[%clk 0:01:42]} 20. Rxd8 {[%clk 0:01:54]}  Rxd8 {[%clk 0:01:41]} 21. Rc1 {[%clk 0:01:53]}  Be6 {[%clk 0:01:34]} 22. Nc4 {[%clk 0:01:40]}  Qa6 {[%clk 0:01:33]} 23. b3 {[%clk 0:01:39]}  b5 {[%clk 0:01:18]} 24. Nce5 {[%clk 0:01:31]}  Qb7 {[%clk 0:01:07]} 25. Nc6 {[%clk 0:01:29]}  Re8 {[%clk 0:01:02]} 26. Nfd4 {[%clk 0:01:25]}  Bd7 {[%clk 0:00:58]} 27. f3 {[%clk 0:01:24]}  a6 {[%clk 0:00:57]} 28. Qc2 {[%clk 0:01:20]}  Nh5 {[%clk 0:00:52]} 29. g4 {[%clk 0:01:13]}  Nf4 {[%clk 0:00:52]} 30. g3 {[%clk 0:01:06]}  Ne6 {[%clk 0:00:52]} 31. Nf5 {[%clk 0:01:06]}  Bxc6 {[%clk 0:00:36]} 32. Qxc6 {[%clk 0:01:06]}  Qxc6 {[%clk 0:00:30]} 33. Rxc6 {[%clk 0:01:05]}  g6 {[%clk 0:00:30]} 34. Nd6 {[%clk 0:00:50]}  Rd8 {[%clk 0:00:30]} 35. e5 {[%clk 0:00:47]}  Nd4 {[%clk 0:00:25]} 36. Rc3 {[%clk 0:00:47]}  b4 {[%clk 0:00:20]} 37. Rd3 {[%clk 0:00:44]}  Ne2 {[%clk 0:00:20]} 38. f4 {[%clk 0:00:43]}  Nc3+ {[%clk 0:00:20]} 39. Kb2 {[%clk 0:00:43]}  a5 {[%clk 0:00:20]} 40. a3 {[%clk 0:00:42]}  Rb8 {[%clk 0:00:19]} 41. axb4 {[%clk 0:00:42]}  axb4 {[%clk 0:00:19]} 42. f5 {[%clk 0:00:26]}  gxf5 {[%clk 0:00:19]} 43. gxf5 {[%clk 0:00:26]}  Kf8 {[%clk 0:00:19]} 44. f6 {[%clk 0:00:23]}  Ra8 {[%clk 0:00:18]} 45. Nc4 {[%clk 0:00:17]}  Ke8 {[%clk 0:00:15]} 46. Nd6+ {[%clk 0:00:16]}  Kf8 {[%clk 0:00:15]} 47. Nf5 {[%clk 0:00:16]}  h5 {[%clk 0:00:14]} 48. Rd4 {[%clk 0:00:14]}  Ra2+ {[%clk 0:00:12]} 49. Kc1 {[%clk 0:00:14]}  Ne2+ {[%clk 0:00:13]} 50. Kb1 {[%clk 0:00:14]}  Nxd4 {[%clk 0:00:13]} 51. Nxd4 {[%clk 0:00:13]}  Rg2 {[%clk 0:00:14]} 52. Nf5 {[%clk 0:00:13]}  Rf2 {[%clk 0:00:11]} 53. Nd4 {[%clk 0:00:13]}  Ke8 {[%clk 0:00:10]} 54. Kc1 {[%clk 0:00:11]}  Kd7 {[%clk 0:00:10]} 55. Kd1 {[%clk 0:00:10]}  Rg2 {[%clk 0:00:10]} 56. Nf5 {[%clk 0:00:10]}  Ke6 {[%clk 0:00:09]} 57. Ng7+ {[%clk 0:00:10]}  Kxe5 {[%clk 0:00:10]} 58. Nxh5 {[%clk 0:00:11]}  Rb2 {[%clk 0:00:10]} 59. Nf4 {[%clk 0:00:09]}  Kxf6 {[%clk 0:00:07]} 60. Nd5+ {[%clk 0:00:09]}  Kg5 {[%clk 0:00:08]} 61. Nxb4 {[%clk 0:00:10]}  Rxb3 {[%clk 0:00:08]} 62. Nc6 {[%clk 0:00:07]}  Rxg3 {[%clk 0:00:07]} 63. Ke2 {[%clk 0:00:08]}  f5 {[%clk 0:00:07]} 64. Kf2 {[%clk 0:00:08]}  Ra3 {[%clk 0:00:07]} 65. Ne5 {[%clk 0:00:07]}  Kf4 {[%clk 0:00:07]} 66. Ng6+ {[%clk 0:00:07]}  Ke4 {[%clk 0:00:08]} 67. Nh4 {[%clk 0:00:06]}  f4 {[%clk 0:00:08]} 68. Ng6 {[%clk 0:00:06]}  Ra2+ {[%clk 0:00:08]} 69. Ke1 {[%clk 0:00:06]}  f3 {[%clk 0:00:09]} 70. Nh4 {[%clk 0:00:05]}  Ra6 {[%clk 0:00:09]} 71. Kf2 {[%clk 0:00:04]}  Rh6 {[%clk 0:00:08]} 72. Nxf3 {[%clk 0:00:02]}  Rf6 {[%clk 0:00:08]} 0-1


[Site "https://www.chess.com"]

[Event "Titled Tuesday Blitz August 31 2021"]
[White "Milchev, Nikolay"]
[Black "Erdogdu, Mert"]
[WhiteFideId "2906090"]
[BlackFideId "6301495"]
[WhiteElo "2449"]
[BlackElo "2485"]
[Result "0-1"]
[Round "11"]
[TimeControl "180+1"]
[Date "2021.08.31"]
[WhiteClock "0:01:35"]
[BlackClock "0:01:04"]

1. Nf3 {[%clk 0:03:00]}  d5 {[%clk 0:02:59]} 2. c4 {[%clk 0:03:01]}  e6 {[%clk 0:03:00]} 3. g3 {[%clk 0:03:01]}  c5 {[%clk 0:03:00]} 4. Bg2 {[%clk 0:03:01]}  Nf6 {[%clk 0:03:00]} 5. cxd5 {[%clk 0:03:01]}  exd5 {[%clk 0:03:01]} 6. d4 {[%clk 0:03:02]}  Nc6 {[%clk 0:03:01]} 7. O-O {[%clk 0:03:02]}  Be7 {[%clk 0:03:02]} 8. dxc5 {[%clk 0:03:03]}  Bxc5 {[%clk 0:03:02]} 9. a3 {[%clk 0:03:04]}  Ne4 {[%clk 0:03:02]} 10. b4 {[%clk 0:03:02]}  Bb6 {[%clk 0:03:02]} 11. Bb2 {[%clk 0:03:01]}  O-O {[%clk 0:03:02]} 12. e3 {[%clk 0:03:01]}  Bg4 {[%clk 0:03:00]} 13. Nbd2 {[%clk 0:02:59]}  Qe7 {[%clk 0:02:51]} 14. h3 {[%clk 0:02:48]}  Bh5 {[%clk 0:02:49]} 15. g4 {[%clk 0:02:46]}  Bg6 {[%clk 0:02:48]} 16. Nb3 {[%clk 0:02:46]}  Rad8 {[%clk 0:02:41]} 17. Nbd4 {[%clk 0:02:45]}  h5 {[%clk 0:02:31]} 18. Rc1 {[%clk 0:02:43]}  hxg4 {[%clk 0:02:28]} 19. hxg4 {[%clk 0:02:44]}  Ne5 {[%clk 0:02:11]} 20. Nxe5 {[%clk 0:02:43]}  Qxe5 {[%clk 0:02:10]} 21. f4 {[%clk 0:02:25]}  Qe7 {[%clk 0:02:03]} 22. f5 {[%clk 0:02:23]}  Bh7 {[%clk 0:02:02]} 23. Qc2 {[%clk 0:02:17]}  Ng5 {[%clk 0:01:46]} 24. Qf2 {[%clk 0:02:13]}  Rfe8 {[%clk 0:01:42]} 25. Rfe1 {[%clk 0:02:09]}  f6 {[%clk 0:01:38]} 26. Qf4 {[%clk 0:02:02]}  Kf8 {[%clk 0:01:30]} 27. Kf2 {[%clk 0:02:00]}  Bg8 {[%clk 0:01:17]} 28. Rc2 {[%clk 0:01:46]}  Rc8 {[%clk 0:01:15]} 29. Rec1 {[%clk 0:01:45]}  Rc4 {[%clk 0:01:15]} 30. Bxd5 {[%clk 0:01:42]}  Rxc2+ {[%clk 0:01:09]} 31. Rxc2 {[%clk 0:01:42]}  Nh3+ {[%clk 0:01:09]} 32. Kg3 {[%clk 0:01:39]}  Nxf4 {[%clk 0:01:10]} 33. Bxg8 {[%clk 0:01:39]}  Qxe3+ {[%clk 0:01:06]} 34. Nf3 {[%clk 0:01:39]}  Kxg8 {[%clk 0:01:05]} 35. Bc1 {[%clk 0:01:35]}  Ne2+ {[%clk 0:01:04]} 0-1


[Site "https://www.chess.com"]